bitfinex-derivatives/quotes_SOLF0:USTF0_20240823
["timestamp","ask_amount","ask_price","bid_price","bid_amount"]
[1724449918363,0.04931703,151.73,151.7,6.51372866]
[1724449918564,0.04931703,151.73,151.7,3.2929]
[1724449921160,0.04931703,151.73,151.71,3.2927]
[1724449923565,0.04931703,151.73,151.7,3.293]
[1724449931381,0.04931703,151.73,151.71,3.2928]
[1724449935775,0.04931703,151.73,151.7,3.2929]
[1724449935972,0.04931703,151.73,151.69,0.04997866]
[1724449936577,3.34171703,151.73,151.69,3.34307866]
[1724449936779,0.04931703,151.73,151.69,3.34307866]
[1724449940173,0.04931703,151.73,151.7,3.293]
[1724449950988,0.04931703,151.73,151.71,3.2927]
[1724449955086,0.04931703,151.73,151.7,3.2929]
[1724449968002,2.6779,151.81,151.72,27.92]
[1724449968206,17.87081503,151.88,151.74,27.92]
[1724449968207,3.25099644,151.85,151.74,27.92]
[1724449968400,27.92,151.85,151.74,30.7384]
[1724449968598,31.2516459,151.85,151.74,30.7384]
[1724449969103,0.04251205,151.81,151.78,0.04785536]
[1724449969298,0.04251205,151.81,151.78,3.37917208]
[1724449969499,0.04251205,151.81,151.78,31.29917208]
[1724449969701,0.04251205,151.81,151.8,3.2908]
[1724449974507,2.7175,151.87,151.83,3.2901]
[1724449974903,2.7175,151.87,151.8,27.92]
[1724449975103,2.7175,151.87,151.82,3.2903]
[1724449975611,0.02310696,151.86,151.83,0.04319744]
[1724449975799,0.02310696,151.86,151.83,3.33329744]
[1724449976810,0.02310696,151.86,151.84,3.2899]
[1724449979800,0.02310696,151.86,151.85,3.2897]
[1724449989813,0.02310696,151.86,151.84,3.2899]
[1724449990914,0.02310696,151.86,151.83,3.33319744]
[1724449991115,0.02310696,151.86,151.83,0.04319744]
[1724449992321,0.02310696,151.86,151.84,3.2899]
[1724449993619,0.02310696,151.86,151.83,0.04319744]
[1724449994023,0.02310696,151.86,151.84,3.2898]
[1724449994719,0.02310696,151.86,151.85,3.2897]
[1724449996621,0.02310696,151.86,151.84,3.2898]
[1724449998225,0.02310696,151.86,151.85,3.2897]
[1724450002825,8.62273734,151.92,151.85,27.92]
[1724450002826,2.7748,151.92,151.85,27.92]
[1724450003033,2.7748,151.92,151.87,27.92]
[1724450004239,2.7748,151.92,151.88,0.04751613]
[1724450004430,6.063,151.92,151.88,3.33651613]
[1724450004625,3.23834661,151.95,151.88,0.04751613]
[1724450006331,3.288,151.93,151.88,3.33651613]
[1724450007433,3.288,151.93,151.89,3.2888]
[1724450007839,3.2883,151.92,151.88,0.04751613]
[1724450008836,3.2883,151.92,151.88,3.33661613]
[1724450009335,3.288,151.93,151.88,0.04751613]
[1724450009636,3.288,151.93,151.89,3.2888]
[1724450010330,3.2878,151.94,151.9,3.2885]
[1724450010532,3.2878,151.94,151.9,3.33888368]
[1724450012333,3.288,151.93,151.9,3.33888368]
[1724450012534,5.3741,151.96,151.9,0.05038368]
[1724450012932,3.2878,151.94,151.9,0.05038368]
[1724450013930,3.2878,151.94,151.9,3.33898368]
[1724450015439,3.288,151.93,151.9,3.33898368]
[1724450026649,3.2878,151.94,151.9,3.33898368]
[1724450027744,3.2876,151.95,151.92,3.2882]
[1724450027952,2.6678,151.96,151.9,0.05038368]
[1724450029343,3.2878,151.94,151.91,3.2884]
[1724450029550,2.6678,151.96,151.9,0.05038368]
[1724450030050,3.2877,151.95,151.92,3.2882]
[1724450030250,2.6678,151.96,151.9,0.05038368]
[1724450031350,3.2879,151.94,151.91,3.2883]
[1724450031545,50.26024604,151.97,151.9,0.05038368]
[1724450031746,3.2875,151.96,151.93,3.2879]
[1724450031950,25.27,152.04,151.94,25.27]
[1724450032254,4.5843,152.03,151.97,0.04507319]
[1724450032643,7.0869,152.03,151.97,0.04507319]
[1724450033052,3.2869,151.98,151.97,0.04507319]
[1724450033255,7.0869,152.03,151.97,0.04507319]
[1724450033950,3.2869,151.98,151.97,0.04507319]
[1724450035351,4.5843,152.03,151.97,0.04507319]
[1724450036362,4.5843,152.03,151.97,3.33207319]
[1724450036961,3.2865,152.0,151.97,3.33207319]
[1724450038056,5.84295427,152.07,151.98,25.27]
[1724450038258,83.7906049,152.14,152.01,0.04464215]
[1724450038259,2.0739,152.08,152.01,0.04464215]
[1724450038463,3.2855,152.05,152.02,3.286]
[1724450038654,3.2855,152.05,152.03,0.04671]
[1724450039159,2.518,152.12,152.03,0.04671]
[1724450039160,12.35496512,152.21,152.04,25.27]
[1724450039358,2.518,152.18,152.11,0.04294528]
[1724450039659,45.42857776,152.29,152.13,0.04884485]
[1724450039660,30.20607853,152.29,152.13,0.04884485]
[1724450039851,29.7899,152.23,152.12,25.27]
[1724450040050,29.7899,152.23,152.17,0.04765067]
[1724450040253,3.2826,152.18,152.17,0.04765067]
[1724450041771,3.2824,152.19,152.17,0.04765067]
[1724450042455,4.5199,152.23,152.17,0.04765067]
[1724450042456,3.2822,152.2,152.17,0.04765067]
[1724450042656,4.5199,152.23,152.17,0.04765067]
[1724450043063,3.2825,152.19,152.17,0.04765067]
[1724450043661,3.2822,152.2,152.17,0.04765067]
[1724450044060,4.5199,152.23,152.17,0.04765067]
[1724450044261,3.2824,152.19,152.17,0.04765067]
[1724450045764,3.2826,152.18,152.17,0.04765067]
[1724450046558,3.2829,152.17,152.13,3.2835]
[1724450046764,3.2829,152.17,152.12,28.5538]
[1724450046966,3.2829,152.17,152.12,25.27]
[1724450047665,0.04245181,152.16,152.13,0.04252952]
[1724450049570,3.2826,152.19,152.15,25.27]
[1724450049770,3.2826,152.19,152.17,25.27]
[1724450049970,4.5199,152.23,152.15,25.27]
[1724450050673,4.5199,152.23,152.17,0.04661649]
[1724450051866,3.2825,152.19,152.17,0.04661649]
[1724450052073,4.5199,152.23,152.17,0.04661649]
[1724450052773,4.5199,152.23,152.17,25.31661649]
[1724450053075,3.2821,152.21,152.18,3.2826]
[1724450053375,3.2821,152.21,152.17,25.31661649]
[1724450053575,3.2821,152.21,152.17,3.32931649]
[1724450053963,3.2822,152.2,152.17,3.32931649]
[1724450054574,4.5199,152.23,152.17,0.04661649]
[1724450054776,6.9966,152.23,152.17,0.04661649]
[1724450055178,3.2825,152.19,152.17,0.04661649]
[1724450056974,4.5199,152.23,152.17,0.04661649]
[1724450057170,4.5199,152.23,152.17,25.31661649]
[1724450057576,3.2821,152.21,152.17,25.31661649]
[1724450057772,3.20592998,152.27,152.19,25.27]
[1724450057983,3.2816,152.23,152.21,0.04199468]
[1724450058169,9.8349,152.39,152.21,0.04199468]
[1724450058376,25.27,152.31,152.26,0.04800381]
[1724450058579,4.61347818,152.3,152.26,0.04800381]
[1724450059273,3.2806,152.27,152.26,0.04800381]
[1724450059474,25.27,152.29,152.16,2.586]
[1724450059778,25.27,152.27,152.17,25.27]
[1724450059972,3.2819,152.22,152.18,3.2825]
[1724450060372,25.27,152.27,152.17,25.27]
[1724450060581,0.04813866,152.21,152.18,0.04682148]
[1724450061278,3.2822,152.2,152.18,0.04682148]
[1724450062672,0.04813866,152.21,152.19,25.27]
[1724450063371,0.04813866,152.21,152.2,3.2822]
[1724450064174,0.04813866,152.21,152.19,28.5522]
[1724450066878,0.04813866,152.21,152.2,3.2822]
[1724450070570,0.04813866,152.21,152.2,28.5522]
[1724450071781,0.04813866,152.21,152.18,0.04682148]
[1724450072379,3.33023866,152.21,152.18,3.32942148]
[1724450072584,0.04813866,152.21,152.18,0.04682148]
[1724450074589,0.04813866,152.21,152.18,3.32942148]
[1724450074590,3.33023866,152.21,152.18,3.32942148]
[1724450074884,3.33023866,152.21,152.18,28.52942148]
[1724450079788,3.33023866,152.21,152.18,3.32942148]
[1724450080185,0.04813866,152.21,152.18,0.04682148]
[1724450081586,0.04813866,152.21,152.14,98.45241675]
[1724450082585,0.04813866,152.21,152.16,0.04392288]
[1724450082784,3.2829,152.17,152.16,0.04392288]
[1724450083691,0.04813866,152.21,152.16,0.04392288]
[1724450084291,3.2825,152.19,152.16,3.32682288]
[1724450084591,0.04813866,152.21,152.16,0.04392288]
[1724450084986,3.2827,152.18,152.16,0.04392288]
[1724450085989,0.04813866,152.21,152.16,0.04392288]
[1724450086692,3.2827,152.18,152.16,0.04392288]
[1724450088186,3.2828,152.17,152.16,0.04392288]
[1724450090194,3.2834,152.15,152.13,25.2]
[1724450090494,26.5974,152.22,152.11,26.4804]
[1724450090794,3.2835,152.14,152.11,29.7643]
[1724450091183,3.2837,152.13,152.11,0.05020299]
[1724450091385,0.044576,152.14,152.11,0.05020299]
[1724450092493,3.2838,152.13,152.11,0.05020299]
[1724450092892,0.044576,152.14,152.11,0.05020299]
[1724450093401,3.2839,152.12,152.11,0.05020299]
[1724450094597,0.044576,152.14,152.08,25.23]
[1724450095188,3.2845,152.09,152.08,25.23]
[1724450095592,3.2845,152.09,152.07,0.04586038]
[1724450095788,3.2847,152.08,152.07,0.04586038]
[1724450099407,3.285,152.07,152.04,28.5156]
[1724450100413,3.285,152.07,152.04,28.56401732]
[1724450100704,0.04476526,152.1,152.04,0.04841732]
[1724450100906,1.36286526,152.1,152.04,0.04841732]
[1724450101701,3.2853,152.06,152.04,0.04841732]
[1724450102200,3.2854,152.05,152.04,0.04841732]
[1724450102396,0.04307599,152.07,152.04,0.04841732]
[1724450102904,3.2854,152.05,152.04,0.04841732]
[1724450108199,0.04307599,152.07,151.99,51.49]
[1724450108400,1.3809,152.09,151.99,51.49]
[1724450109009,25.23,152.05,151.91,3.28707464]
[1724450109210,0.04567151,152.0,151.96,0.04943389]
[1724450109408,3.2868,151.99,151.96,0.04782999]
[1724450109911,3.2869,151.98,151.96,0.04782999]
[1724450113810,0.04191381,152.0,151.96,0.04782999]
[1724450113811,3.2871,151.97,151.96,0.04782999]
[1724450115919,3.2877,151.95,151.91,29.8162]
[1724450116110,3.2877,151.95,151.91,26.528]
[1724450116512,3.2877,151.95,151.92,3.2882]
[1724450116810,3.33335371,151.95,151.92,3.33364897]
[1724450117010,3.2878,151.94,151.92,0.04544897]
[1724450117211,0.04565371,151.95,151.92,0.04544897]
[1724450117914,0.04565371,151.95,151.92,3.33364897]
[1724450117915,3.33335371,151.95,151.92,3.33364897]
[1724450118418,0.04565371,151.95,151.92,0.04544897]
[1724450119317,3.2879,151.94,151.92,0.04544897]
[1724450122213,3.33325371,151.95,151.92,3.33364897]
[1724450122418,0.04565371,151.95,151.94,25.23]
[1724450122617,1.379,152.02,151.94,25.23]
[1724450122815,25.23,152.05,151.96,25.23]
[1724450123017,1.3283,152.06,151.96,25.23]
[1724450123214,1.3283,152.06,151.98,25.23]
[1724450123417,1.3283,152.06,152.0,25.23]
[1724450123619,0.04455828,152.05,152.03,3.2858]
[1724450123918,0.04455828,152.05,152.02,25.27653246]
[1724450125516,0.04455828,152.05,152.03,3.2856]
[1724450128811,0.04455828,152.05,152.04,3.2856]
[1724450134216,0.04455828,152.05,152.03,3.2858]
[1724450135523,0.04455828,152.05,152.02,3.33253246]
[1724450135714,0.04455828,152.05,152.02,0.04653246]
[1724450136325,0.04455828,152.05,152.03,3.2857]
[1724450137623,0.04455828,152.05,152.02,0.04653246]
[1724450138425,0.04455828,152.05,152.03,3.2857]
[1724450141431,0.04455828,152.05,152.04,3.2856]
[1724450143430,0.04455828,152.05,152.03,3.2858]
[1724450150345,0.04455828,152.05,152.04,3.2856]
[1724450150640,0.04455828,152.05,152.02,0.04653246]
[1724450151340,0.04455828,152.05,152.03,3.2857]
[1724450151844,3.33005828,152.05,152.02,3.33253246]
[1724450152646,3.2856,152.04,152.02,3.33253246]
[1724450153547,3.2856,152.04,152.02,0.04653246]
[1724450155640,3.2856,152.04,152.02,3.33253246]
[1724450155845,3.2856,152.04,152.02,0.04653246]
[1724450156649,3.2858,152.03,152.02,0.04653246]
[1724450157553,25.23,152.04,151.99,3.2866]
[1724450157946,25.23,152.04,151.98,3.2868]
[1724450158352,3.2863,152.01,151.98,3.2868]
[1724450158746,3.2863,152.01,151.99,0.04846876]
[1724450161154,0.0500967,152.03,151.99,0.04846876]
[1724450161155,3.2865,152.0,151.99,0.04846876]
[1724450162857,3.2869,151.99,151.95,3.2874]
[1724450163553,25.23,152.0,151.94,29.5678]
[1724450163754,25.23,152.0,151.95,0.04727472]
[1724450163755,0.04199512,151.99,151.95,0.04727472]
[1724450164155,3.287,151.98,151.95,0.04727472]
[1724450164660,3.2873,151.96,151.95,0.04727472]
[1724450164856,26.5773,151.98,151.9,1.3799]
[1724450165456,3.2877,151.95,151.91,3.2883]
[1724450165960,3.33489399,151.95,151.91,3.3386965]
[1724450167158,3.2878,151.94,151.91,0.0503965]
[1724450167659,3.288,151.93,151.91,0.0503965]
[1724450168469,0.04719399,151.95,151.91,0.0503965]
[1724450168757,0.04719399,151.95,151.91,3.3387965]
[1724450169154,3.2879,151.94,151.91,0.0503965]
[1724450170355,3.2879,151.94,151.91,3.3387965]
[1724450170961,3.2879,151.94,151.91,0.0503965]
[1724450171165,3.288,151.93,151.91,0.0503965]
[1724450171666,0.04719399,151.95,151.91,3.3387965]
[1724450171856,3.2879,151.94,151.91,0.0503965]
[1724450172361,3.2878,151.94,151.91,0.0503965]
[1724450174365,3.288,151.93,151.91,0.0503965]
[1724450175859,3.2879,151.94,151.91,3.3387965]
[1724450176259,0.04719399,151.95,151.91,25.2803965]
[1724450177762,0.04719399,151.95,151.94,3.2878]
[1724450179462,0.04719399,151.95,151.93,3.288]
[1724450182369,0.04719399,151.95,151.92,3.2881]
[1724450182968,0.04719399,151.95,151.92,3.2882]
[1724450183469,3.33499399,151.95,151.91,3.3386965]
[1724450184473,3.33499399,151.95,151.92,3.2882]
[1724450187778,3.33499399,151.95,151.91,3.3386965]
[1724450189074,3.2878,151.94,151.91,3.3386965]
[1724450189275,0.04719399,151.95,151.92,3.2882]
[1724450189871,3.33489399,151.95,151.92,3.2882]
[1724450195779,3.2879,151.94,151.91,3.3387965]
[1724450196781,3.2879,151.94,151.92,3.2882]
[1724450197483,3.33489399,151.95,151.92,3.2882]
[1724450197880,0.04719399,151.95,151.91,3.3386965]
[1724450198085,3.2878,151.94,151.91,3.3386965]
[1724450199993,0.04719399,151.95,151.91,0.0503965]
[1724450201085,3.2879,151.94,151.91,3.3385965]
[1724450203094,0.04719399,151.95,151.91,0.0503965]
[1724450203389,3.33479399,151.95,151.92,3.2881]
[1724450203595,0.04719399,151.95,151.91,0.0503965]
[1724450204493,3.2878,151.94,151.91,3.3386965]
[1724450205491,3.288,151.93,151.91,0.0503965]
[1724450213000,3.288,151.93,151.91,3.3387965]
[1724450213195,0.04719399,151.95,151.91,3.3387965]
[1724450213196,0.04719399,151.95,151.91,0.0503965]
[1724450215094,0.04719399,151.95,151.91,25.2803965]
[1724450215403,0.04719399,151.95,151.94,3.2878]
[1724450218597,25.23,152.01,151.91,25.2803965]
[1724450218796,3.2864,152.01,151.93,25.23]
[1724450218997,1.2742,152.04,151.95,25.23]
[1724450219201,3.2859,152.03,151.99,3.2865]
[1724450219699,3.3361873,152.03,151.99,3.33621157]
[1724450219891,0.0502873,152.03,152.0,3.2863]
[1724450220901,3.3361873,152.03,152.0,3.2863]
[1724450221299,0.0502873,152.03,152.01,3.2862]
[1724450223204,0.0502873,152.03,152.02,3.286]
[1724450223403,0.0502873,152.03,151.99,0.04971157]
[1724450223903,3.3360873,152.03,152.0,3.2863]
[1724450224105,0.0502873,152.03,152.0,3.2863]
[1724450224304,0.0502873,152.03,151.99,0.04971157]
[1724450225098,0.0502873,152.03,152.01,3.2861]
[1724450229507,0.0502873,152.03,152.02,3.286]
[1724450233507,3.26755428,152.12,152.0,25.23]
[1724450233709,3.26755428,152.12,152.02,25.23]
[1724450233710,25.23,152.12,152.02,25.23]
[1724450234006,25.23,152.12,152.06,3.285]
[1724450234007,3.2846,152.09,152.06,3.285]
[1724450234207,3.36198924,152.11,152.02,25.23]
[1724450234609,0.0415304,152.08,152.07,3.2848]
[1724450242513,28.57818066,152.16,152.06,25.23]
[1724450242707,3.2835,152.14,152.06,25.23]
[1724450243305,3.2835,152.14,152.11,3.284]
[1724450243510,3.33377014,152.14,152.11,3.32619688]
[1724450243909,0.05027014,152.14,152.12,3.2838]
[1724450244305,0.05027014,152.14,152.11,0.04219688]
[1724450245114,0.05027014,152.14,152.13,3.2837]
[1724450259936,6.5584,152.34,152.13,1.20437587]
[1724450260133,25.23,152.26,152.16,25.23]
[1724450260334,2.5729,152.27,152.07,1.393]
[1724450260335,25.23,152.24,152.14,25.23]
[1724450260837,25.23,152.22,152.12,25.23]
[1724450261145,0.04820164,152.19,152.15,0.04864207]
[1724450261340,0.04820164,152.19,152.16,3.2829]
[1724450261842,0.04820164,152.19,152.15,0.04864207]
[1724450262539,0.04820164,152.19,152.17,3.2827]
[1724450264643,0.04820164,152.19,152.18,3.2826]
[1724450265338,0.04820164,152.19,152.15,0.04864207]
[1724450265339,0.04820164,152.19,152.17,3.2827]
[1724450266347,0.04820164,152.19,152.15,0.04864207]
[1724450266844,0.04820164,152.19,152.18,3.2826]
[1724450272349,0.04820164,152.19,152.16,25.23]
[1724450272649,0.04820164,152.19,152.18,3.2826]
[1724450274945,0.04820164,152.19,152.18,28.5126]
[1724450276740,0.04820164,152.19,152.18,3.2826]
[1724450293158,0.04820164,152.19,152.15,0.04864207]
[1724450293560,3.33070164,152.19,152.15,0.04864207]
[1724450293758,3.33070164,152.19,152.16,3.2829]
[1724450294660,3.2826,152.18,152.15,3.33184207]
[1724450295762,3.33070164,152.19,152.15,3.33184207]
[1724450296859,3.33070164,152.19,152.16,3.2829]
[1724450297965,3.33070164,152.19,152.15,3.33174207]
[1724450298165,0.04820164,152.19,152.15,3.33174207]
[1724450298462,0.04820164,152.19,152.15,0.04864207]
[1724450298854,3.2827,152.18,152.15,0.04864207]
[1724450299054,25.27820164,152.19,152.15,0.04864207]
[1724450299260,25.27820164,152.19,152.09,1.2875]
[1724450299561,3.2834,152.15,152.09,1.2875]
[1724450300163,0.04514548,152.14,152.1,0.04554079]
[1724450300656,0.04514548,152.14,152.11,3.2841]
[1724450301871,3.32864548,152.14,152.11,3.2841]
[1724450302763,0.04514548,152.14,152.0,62.57440057]
[1724450302965,1.3485,152.13,152.01,25.23]
[1724450303165,25.23,152.1,152.01,25.23]
[1724450303372,3.2847,152.09,152.06,3.2851]
[1724450303858,3.2847,152.09,152.06,3.3319446]
[1724450303859,3.32714481,152.09,152.06,3.3319446]
[1724450304056,3.2848,152.08,152.06,0.0468446]
[1724450309876,3.32704481,152.09,152.06,0.0468446]
[1724450310470,3.2848,152.08,152.06,0.0468446]
[1724450310668,0.04244481,152.09,152.07,3.2849]
[1724450311270,0.04244481,152.09,152.08,3.2847]
[1724450313967,0.04244481,152.09,152.07,3.2849]
[1724450316274,0.04244481,152.09,152.06,3.3319446]
[1724450316874,0.04244481,152.09,152.07,3.2849]
[1724450317867,0.04244481,152.09,152.06,3.3319446]
[1724450319176,0.04244481,152.09,152.06,0.0468446]
[1724450320070,0.04244481,152.09,152.07,3.2848]
[1724450320975,0.04244481,152.09,152.08,3.2847]
[1724450321982,0.04244481,152.09,152.07,3.2849]
[1724450324481,0.04244481,152.09,152.06,3.3318446]
[1724450325375,0.04244481,152.09,152.07,3.2849]
[1724450326384,0.04244481,152.09,152.08,3.2847]
[1724450328890,0.04244481,152.09,152.07,3.2849]
[1724450330491,0.04244481,152.09,152.08,3.2847]
[1724450338187,0.04244481,152.09,152.07,3.2849]
[1724450340596,3.32704481,152.09,152.06,0.0468446]
[1724450341796,3.2848,152.08,152.06,0.0468446]
[1724450342190,3.32704481,152.09,152.06,0.0468446]
[1724450343902,3.32704481,152.09,152.06,3.3319446]
[1724450349602,0.04244481,152.09,151.98,25.22]
[1724450349905,25.22,152.11,151.98,25.22]
[1724450350203,3.2853,152.06,152.02,3.2859]
[1724450350406,25.22,152.11,152.02,3.2859]
[1724450350603,0.04727846,152.06,152.02,3.33410606]
[1724450352403,3.2855,152.05,152.02,3.33410606]
[1724450353701,3.2858,152.03,152.02,0.04820606]
[1724450354211,0.04727846,152.06,152.02,0.04820606]
[1724450354406,3.2858,152.03,152.02,0.04820606]
[1724450358611,0.04727846,152.06,152.02,0.04820606]
[1724450359611,3.2854,152.05,152.02,3.33420606]
[1724450369216,0.04727846,152.06,152.02,0.04820606]
[1724450370322,0.04727846,152.06,152.04,3.2855]
[1724450376118,0.04727846,152.06,152.05,3.2854]
[1724450390140,25.22,152.19,152.09,25.22]
[1724450390438,3.2834,152.15,152.11,3.2839]
[1724450391028,3.32751661,152.15,152.11,3.33193093]
[1724450391734,3.2835,152.14,152.11,3.33193093]
[1724450395438,0.04411661,152.15,152.11,3.33193093]
[1724450396442,3.29376388,152.19,152.11,25.27803093]
[1724450396635,25.23,152.24,152.12,4.5579938]
[1724450396838,28.55868664,152.24,152.12,5.9059938]
[1724450397242,25.23,152.24,152.12,2.6676]
[1724450397543,0.0471369,152.2,152.18,3.2826]
[1724450399647,3.3293369,152.2,152.17,3.3297288]
[1724450400543,0.0471369,152.2,152.18,3.2825]
[1724450401346,0.0471369,152.2,152.18,3.2826]
[1724450401739,0.0471369,152.2,152.17,0.0470288]
[1724450401945,0.0471369,152.2,152.19,3.2824]
[1724450403446,3.34739503,152.25,152.22,3.2815]
[1724450403646,28.511,152.26,152.22,3.2815]
[1724450404047,4.014,152.31,152.2,25.23]
[1724450404048,2.6856,152.31,152.2,25.23]
[1724450404253,3.26065971,152.3,152.21,2.7079]
[1724450404547,0.04795554,152.27,152.25,3.2811]
[1724450405147,0.04795554,152.27,152.26,3.2809]
[1724450406151,6.5546,152.43,152.24,0.04166066]
[1724450406152,6.5546,152.43,152.29,3.2802]
[1724450406352,6.5546,152.43,152.25,25.23]
[1724450406353,25.23,152.36,152.25,25.23]
[1724450407047,28.5089,152.36,152.25,25.23]
[1724450407249,28.5089,152.36,152.29,0.04718577]
[1724450407250,0.04560615,152.32,152.29,0.04718577]
[1724450408051,3.2782,152.39,152.29,25.27718577]
[1724450408352,25.23,152.42,152.31,25.23]
[1724450408555,25.23,152.42,152.37,3.2785]
[1724450408946,3.2779,152.4,152.31,25.23]
[1724450409147,0.04500391,152.37,152.34,0.04679221]
[1724450409551,0.04500391,152.37,152.36,3.2787]
[1724450409746,0.04500391,152.37,152.34,0.04679221]
[1724450410859,0.04500391,152.37,152.35,3.2789]
[1724450411154,0.04500391,152.37,152.34,0.04679221]
[1724450412257,0.04500391,152.37,152.34,3.32579221]
[1724450412952,0.04500391,152.37,152.35,3.2789]
[1724450413956,0.04500391,152.37,152.34,0.04679221]
[1724450413957,0.04500391,152.37,152.36,3.2787]
[1724450419850,0.04500391,152.37,152.35,3.2789]
[1724450420263,3.5744091,152.44,152.35,25.23]
[1724450420562,1.3902,152.43,152.35,25.23]
[1724450420860,3.278,152.4,152.36,3.2786]
[1724450421260,3.32655182,152.4,152.36,0.04806885]
[1724450421761,3.32655182,152.4,152.36,3.32666885]
[1724450422956,3.32655182,152.4,152.37,3.2784]
[1724450423159,0.04855182,152.4,152.37,25.23]
[1724450423352,3.5744091,152.44,152.37,25.23]
[1724450423960,3.2776,152.42,152.39,3.2779]
[1724450424460,3.32617544,152.42,152.39,3.32279499]
[1724450425058,0.04857544,152.42,152.39,0.04489499]
[1724450425768,3.2779,152.4,152.39,0.04489499]
[1724450429156,0.04857544,152.42,152.33,25.23]
[1724450429360,2.7166,152.43,152.33,25.23]
[1724450429562,3.2782,152.39,152.35,3.2787]
[1724450429763,2.7166,152.43,152.33,25.23]
[1724450430162,3.32722885,152.4,152.36,0.0416122]
[1724450430570,3.32722885,152.4,152.36,3.3203122]
[1724450431969,3.2781,152.39,152.36,3.3203122]
[1724450432866,0.04922885,152.4,152.36,0.0416122]
[1724450433060,25.23,152.42,152.31,25.23]
[1724450433560,25.23,152.4,152.31,25.23]
[1724450433969,25.23,152.4,152.31,28.5097]
[1724450434164,0.04800341,152.37,152.34,0.04312804]
[1724450435263,0.04800341,152.37,152.36,3.2787]
[1724450435860,3.5744091,152.44,152.35,25.23]
[1724450436471,1.3735,152.43,152.37,3.2784]
[1724450436668,3.5744091,152.44,152.37,3.2784]
[1724450436864,3.2778,152.41,152.39,0.04429414]
[1724450437663,0.04931481,152.42,152.39,0.04429414]
[1724450438461,3.32691481,152.42,152.39,3.32219414]
[1724450438666,0.04931481,152.42,152.39,0.04429414]
[1724450439168,0.04931481,152.42,152.4,3.2777]
[1724450439371,0.04931481,152.42,152.4,25.23]
[1724450439665,0.04931481,152.42,152.41,3.2776]
[1724450440264,3.5744091,152.44,152.43,3.2772]
[1724450440465,3.5744091,152.44,152.43,28.5072]
[1724450441666,2.4782091,152.44,152.43,28.5072]
[1724450447980,0.04567397,152.45,152.44,3.277]
[1724450448272,0.04567397,152.45,152.44,28.507]
[1724450450472,6.546,152.63,152.44,25.23]
[1724450450678,1.3954,152.55,152.51,25.23]
[1724450451379,2.7517,152.64,152.53,25.23]
[1724450451576,1.3954,152.62,152.57,0.04765547]
[1724450451973,1.387,152.64,152.59,25.23]
[1724450452471,1.387,152.64,152.57,0.04765547]
[1724450452472,1.387,152.64,152.63,3.2729]
[1724450452674,1.3954,152.66,152.63,25.23]
[1724450453067,1.3954,152.66,152.64,3.2727]
[1724450453269,1.2994,152.7,152.65,25.23]
[1724450453583,1.2994,152.7,152.66,0.0450737]
[1724450453769,1.387,152.71,152.66,0.0450737]
[1724450454173,3.31002242,152.81,152.7,25.23]
[1724450454381,2.6594,152.8,152.74,0.0430608]
[1724450454574,3.27,152.77,152.75,0.04471371]
[1724450455279,3.28690084,152.84,152.75,0.04471371]
[1724450455466,3.28690084,152.84,152.66,25.23]
[1724450455467,26.5256,152.8,152.78,0.04685859]
[1724450455669,25.23,152.78,152.66,26.5766]
[1724450455873,1.36,152.79,152.65,26.2]
[1724450455874,25.23,152.75,152.65,26.2]
[1724450456172,3.2711,152.72,152.64,25.23]
[1724450456372,3.2711,152.72,152.59,1.3466]
[1724450456373,26.5256,152.71,152.6,51.43]
[1724450456577,25.23,152.69,152.6,26.2]
[1724450456773,0.04797271,152.66,152.63,0.04781273]
[1724450457179,0.04797271,152.66,152.6,26.2]
[1724450457180,25.23,152.65,152.6,26.2]
[1724450457477,1.2956,152.64,152.55,62.26076777]
[1724450457778,1.2956,152.64,152.55,65.53516777]
[1724450457981,25.23,152.63,152.54,25.23]
[1724450458174,0.04521769,152.6,152.57,0.04143725]
[1724450460575,0.04521769,152.6,152.58,3.2739]
[1724450461784,0.04521769,152.6,152.59,3.2738]
[1724450464086,0.04521769,152.6,152.57,0.04143725]
[1724450464283,31.41,152.62,152.49,67.31800268]